fUST/lending_fUST_20250702
["ID","MTS","AMOUNT","RATE_DAILY","PERIOD"]
[368937949,1751398232922,-460.0,0.00017359,2]
[368937950,1751398232934,-460.0,0.00017359,2]
[368937951,1751398232945,-460.0,0.00017359,2]
[368937952,1751398232955,-460.0,0.00017359,2]
[368937953,1751398232964,-460.0,0.00017359,2]
[368937954,1751398232974,-460.0,0.00017359,2]
[368937955,1751398232984,-460.0,0.00017359,2]
[368937956,1751398232994,-460.0,0.00017359,2]
[368937957,1751398233004,-460.0,0.00017359,2]
[368937958,1751398233014,-460.0,0.00017359,2]
[368937959,1751398233023,-460.0,0.00017359,2]
[368937960,1751398233033,-460.0,0.00017359,2]
[368937961,1751398233043,-460.0,0.00017359,2]
[368937962,1751398233052,-460.0,0.00017359,2]
[368937963,1751398233063,-460.0,0.00017359,2]
[368937964,1751398233073,-460.0,0.00017359,2]
[368937965,1751398233094,-460.0,0.00017359,2]
[368937966,1751398233116,-460.0,0.00017359,2]
[368937967,1751398233134,-460.0,0.00017359,2]
[368937968,1751398233148,-460.0,0.00017359,2]
[368937969,1751398233159,-460.0,0.00017359,2]
[368937970,1751398233169,-460.0,0.00017359,2]
[368937971,1751398233179,-460.0,0.00017359,2]
[368937972,1751398233189,-460.0,0.00017359,2]
[368937973,1751398233199,-460.0,0.00017359,2]
[368937974,1751398233210,-460.0,0.00017359,2]
[368937975,1751398233220,-460.0,0.00017359,2]
[368937976,1751398233230,-460.0,0.00017359,2]
[368937977,1751398233240,-460.0,0.00017359,2]
[368937978,1751398233250,-460.0,0.00017359,2]
[368937979,1751398233260,-460.0,0.00017359,2]
[368937980,1751398233274,-460.0,0.00017359,2]
[368937981,1751398233284,-460.0,0.00017359,2]
[368937982,1751398233294,-460.0,0.00017359,2]
[368937983,1751398233307,-460.0,0.00017359,2]
[368937984,1751398233326,-460.0,0.00017359,2]
[368937985,1751398233343,-460.0,0.00017359,2]
[368937986,1751398233353,-460.0,0.00017359,2]
[368937987,1751398233363,-460.0,0.00017359,2]
[368937988,1751398233372,-460.0,0.00017359,2]
[368937989,1751398233382,-460.0,0.00017359,2]
[368937990,1751398233391,-460.0,0.00017359,2]
[368937991,1751398233401,-460.0,0.00017359,2]
[368937992,1751398233411,-460.0,0.00017359,2]
[368937993,1751398233421,-460.0,0.00017359,2]
[368937994,1751398233430,-460.0,0.00017359,2]
[368937995,1751398233441,-587.75,0.00017359,2]
[368937996,1751398233451,-460.0,0.00017359,2]
[368937997,1751398233461,-460.0,0.00017359,2]
[368937998,1751398233470,-460.0,0.00017359,2]
[368937999,1751398233480,-460.0,0.00017359,2]
[368938000,1751398233490,-460.0,0.00017359,2]
[368938001,1751398233501,-460.0,0.00017359,2]
[368938002,1751398233511,-460.0,0.00017359,2]
[368938003,1751398233520,-460.0,0.00017359,2]
[368938004,1751398233530,-460.0,0.00017359,2]
[368938005,1751398233541,-460.0,0.00017359,2]
[368938006,1751398233551,-460.0,0.00017359,2]
[368938007,1751398233559,-460.0,0.00017359,2]
[368938008,1751398233566,-460.0,0.00017359,2]
[368938009,1751398233575,-460.0,0.00017359,2]
[368938010,1751398233584,-524.1188997,0.00017359,2]
[368938011,1751398233595,-460.0,0.00017359,2]
[368938012,1751398233605,-460.0,0.00017359,2]
[368938013,1751398233615,-460.0,0.00017359,2]
[368938014,1751398233624,-460.0,0.00017359,2]
[368938015,1751398233635,-460.0,0.0001736,2]
[368938016,1751398233644,-89.95049491,0.0001736,2]
[368938029,1751398237880,-460.0,0.00017357,2]
[368938030,1751398237890,-631.07820009,0.00017359,2]
[368938031,1751398237899,-460.0,0.00017359,2]
[368938032,1751398237909,-305.7921683,0.00017359,2]
[368938033,1751398237919,-460.0,0.00017359,2]
[368938034,1751398237929,-258.059155,0.0001736,2]
[368938035,1751398237938,-372.6446167,0.0001736,2]
[368938036,1751398237948,-335.32299746,0.0001736,2]
[368938037,1751398237957,-460.0,0.0001736,2]
[368938038,1751398237966,-460.0,0.0001736,2]
[368938039,1751398237976,-518.96,0.0001736,2]
[368938040,1751398237986,-460.0,0.0001736,2]
[368938041,1751398237995,-460.0,0.0001736,2]
[368938042,1751398238005,-592.57,0.0001736,2]
[368938043,1751398238014,-460.0,0.0001736,2]
[368938044,1751398238023,-460.0,0.0001736,2]
[368938045,1751398238032,-460.0,0.0001736,2]
[368938046,1751398238042,-500.0,0.00017373,2]
[368938047,1751398238051,-502.65178596,0.00017373,2]
[368938048,1751398238061,-500.0,0.00017373,2]
[368938049,1751398238071,-460.0,0.00017631,2]
[368938050,1751398238080,-460.0,0.00017631,2]
[368938051,1751398238090,-460.0,0.00017631,2]
[368938052,1751398238101,-460.0,0.00017631,2]
[368938053,1751398238110,-525.62,0.00017631,2]
[368938054,1751398238120,-460.0,0.00017631,2]
[368938055,1751398238129,-459.0,0.00017631,2]
[368938056,1751398238139,-460.0,0.00017631,2]
[368938057,1751398238148,-494.89,0.00017631,2]
[368938058,1751398238157,-460.0,0.00017631,2]
[368938059,1751398238167,-460.0,0.00017631,2]
[368938060,1751398238177,-632.31,0.00017631,2]
[368938061,1751398238186,-460.0,0.00017631,2]
[368938062,1751398238196,-460.0,0.00017631,2]
[368938063,1751398238205,-460.0,0.00017632,2]
[368938064,1751398238214,-487.93381647,0.00017632,2]
[368938065,1751398238223,-460.0,0.00017632,2]
[368938066,1751398238232,-577.58,0.00017632,2]
[368938067,1751398238243,-460.0,0.00017632,2]
[368938068,1751398238253,-495.78,0.00017632,2]
[368938069,1751398238264,-462.64,0.00017632,2]
[368938070,1751398238274,-460.0,0.00017632,2]
[368938071,1751398238285,-460.0,0.00017632,2]
[368938072,1751398238431,-246.37344387,0.00017632,2]
[368938073,1751398238444,-213.62655613,0.00017632,2]
[368938074,1751398238453,-86.37344387,0.00017632,2]
[368938075,1751398238465,-373.62655613,0.00017632,2]
[368938076,1751398238476,-460.0,0.00017632,2]
[368938077,1751398238486,-460.0,0.00017632,2]
[368938078,1751398238495,-460.0,0.00017632,2]
[368938079,1751398238505,-460.0,0.00017632,2]
[368938080,1751398238515,-460.0,0.00017632,2]
[368938081,1751398238524,-460.0,0.00017632,2]
[368938082,1751398238533,-460.0,0.00017632,2]
[368938083,1751398238543,-460.0,0.00017632,2]
[368938084,1751398238552,-460.0,0.00017632,2]
[368938085,1751398238561,-460.0,0.00017632,2]
[368938086,1751398238570,-460.0,0.00017632,2]
[368938087,1751398238579,-460.0,0.00017632,2]
[368938088,1751398238589,-460.0,0.00017632,2]
[368938089,1751398238598,-460.0,0.00017633,2]
[368938090,1751398238608,-194.38,0.00017633,2]
[368938091,1751398238617,-460.0,0.00017633,2]
[368938092,1751398238627,-460.0,0.00017633,2]
[368938093,1751398238636,-460.0,0.00017633,2]
[368938094,1751398238646,-460.0,0.00017633,2]
[368938095,1751398238656,-583.5,0.00017633,2]
[368938096,1751398238666,-460.0,0.00017633,2]
[368938097,1751398238675,-460.0,0.00017633,2]
[368938098,1751398238684,-460.0,0.00017633,2]
[368938099,1751398238694,-460.0,0.00017633,2]
[368938100,1751398238703,-460.0,0.00017633,2]
[368938101,1751398238713,-510.78733226,0.00017633,2]
[368938102,1751398238722,-460.0,0.00017633,2]
[368938103,1751398238731,-460.0,0.00017633,2]
[368938104,1751398238741,-460.0,0.00017633,2]
[368938105,1751398238752,-460.0,0.00017633,2]
[368938106,1751398238762,-460.0,0.00017633,2]
[368938107,1751398238772,-460.0,0.00017633,2]
[368938108,1751398238783,-460.0,0.00017633,2]
[368938109,1751398238794,-460.0,0.00017633,2]
[368938110,1751398238804,-460.0,0.00017633,2]
[368938111,1751398238813,-460.0,0.00017633,2]
[368938112,1751398238823,-460.0,0.00017633,2]
[368938113,1751398238832,-460.0,0.00017633,2]
[368938114,1751398238842,-460.0,0.00017633,2]
[368938115,1751398238852,-460.0,0.00017633,2]
[368938116,1751398238861,-535.5,0.00017633,2]
[368938117,1751398238871,-460.0,0.00017633,2]
[368938118,1751398238880,-460.0,0.00017633,2]
[368938119,1751398238889,-460.0,0.00017905,2]
[368938120,1751398238899,-460.0,0.00017905,2]
[368938121,1751398238909,-460.0,0.00017905,2]
[368938122,1751398238918,-460.0,0.00017905,2]
[368938123,1751398238927,-525.62,0.00017905,2]
[368938124,1751398238937,-460.0,0.00017905,2]
[368938125,1751398238946,-460.0,0.00017905,2]
[368938126,1751398238956,-494.89,0.00017905,2]
[368938127,1751398238965,-460.0,0.00017905,2]
[368938128,1751398238974,-460.0,0.00017905,2]
[368938129,1751398238983,-632.31,0.00017905,2]
[368938130,1751398238993,-460.0,0.00017905,2]
[368938131,1751398239002,-460.0,0.00017905,2]
[368938132,1751398239011,-460.0,0.00017906,2]
[368938133,1751398239021,-460.0,0.00017906,2]
[368938134,1751398239030,-460.0,0.00017906,2]
[368938135,1751398239039,-460.0,0.00017906,2]
[368938136,1751398239048,-460.0,0.00017906,2]
[368938137,1751398239057,-460.0,0.00017906,2]
[368938138,1751398239067,-460.0,0.00017906,2]
[368938139,1751398239076,-460.0,0.00017906,2]
[368938140,1751398239085,-460.0,0.00017906,2]
[368938141,1751398239094,-460.0,0.00017906,2]
[368938142,1751398239106,-563.83,0.00017906,2]
[368938143,1751398239115,-163.11282189,0.00017906,2]
[368938144,1751398239125,-460.0,0.00017906,2]
[368938145,1751398239134,-474.39,0.00017906,2]
[368938146,1751398239145,-460.0,0.00017906,2]
[368938147,1751398239154,-497.67325767,0.00017907,2]
[368938148,1751398239164,-262.62,0.00017907,2]
[368938149,1751398239175,-460.0,0.00017907,2]
[368938150,1751398239185,-500.6,0.00017907,2]
[368938151,1751398239194,-460.0,0.00017907,2]
[368938152,1751398239203,-460.0,0.00017907,2]
[368938153,1751398239212,-460.0,0.00017907,2]
[368938154,1751398239221,-460.0,0.00017907,2]
[368938155,1751398239230,-460.0,0.00017907,2]
[368938156,1751398239239,-460.0,0.00017907,2]
[368938157,1751398239248,-460.0,0.00017907,2]
[368938158,1751398239258,-460.0,0.00017907,2]
[368938159,1751398239267,-460.0,0.00017907,2]
[368938160,1751398239277,-460.0,0.00017907,2]
[368938161,1751398239286,-460.0,0.00017907,2]
[368938162,1751398239296,-460.0,0.00017907,2]
[368938163,1751398239306,-460.0,0.00017907,2]
[368938164,1751398239315,-460.0,0.00017907,2]
[368938165,1751398239325,-460.0,0.00017907,2]
[368938166,1751398239334,-460.0,0.00017907,2]
[368938167,1751398239343,-460.0,0.00017907,2]
[368938168,1751398239353,-2115.68265849,0.00018,2]
[368938169,1751398239363,-4623.17132964,0.00018,2]
[368938170,1751398239372,-460.0,0.00018179,2]
[368938171,1751398239381,-460.0,0.00018179,2]
[368938172,1751398239391,-460.0,0.00018179,2]
[368938173,1751398239400,-460.0,0.00018179,2]
[368938174,1751398239410,-525.62,0.00018179,2]
[368938175,1751398239420,-460.0,0.00018179,2]
[368938176,1751398239430,-494.89,0.00018179,2]
[368938177,1751398239439,-460.0,0.00018179,2]
[368938178,1751398239449,-632.31,0.00018179,2]
[368938179,1751398239459,-460.0,0.00018179,2]
[368938180,1751398239468,-460.0,0.0001818,2]
[368938181,1751398239477,-460.0,0.0001818,2]
[368938182,1751398239486,-460.0,0.0001818,2]
[368938183,1751398239496,-460.0,0.0001818,2]
[368938184,1751398239506,-460.0,0.0001818,2]
[368938185,1751398239515,-460.0,0.0001818,2]
[368938186,1751398239525,-460.0,0.0001818,2]
[368938187,1751398239535,-460.0,0.0001818,2]
[368938188,1751398239545,-460.0,0.0001818,2]
[368938189,1751398239555,-460.0,0.00018181,2]
[368938190,1751398239564,-234.56,0.00018181,2]
[368938191,1751398239574,-460.0,0.00018181,2]
[368938193,1751398239583,-460.0,0.00018181,2]
[368938195,1751398239593,-460.0,0.00018181,2]
[368938196,1751398239603,-460.0,0.00018181,2]
[368938198,1751398239613,-460.0,0.00018181,2]
[368938199,1751398239622,-460.0,0.00018181,2]
[368938201,1751398239632,-460.0,0.00018181,2]
[368938203,1751398239642,-460.0,0.00018181,2]
[368938204,1751398239652,-460.0,0.00018181,2]
[368938206,1751398239662,-460.0,0.00018181,2]
[368938207,1751398239672,-460.0,0.00018181,2]
[368938208,1751398239682,-460.0,0.00018181,2]
[368938210,1751398239692,-460.0,0.00018181,2]
[368938212,1751398239702,-460.0,0.00018287,2]
[368938213,1751398239711,-344.24059989,0.00018287,2]
[368938215,1751398239720,-460.0,0.00018287,2]
[368938216,1751398239730,-460.0,0.00018287,2]
[368938218,1751398239739,-460.0,0.00018287,2]
[368938219,1751398239749,-463.8458609,0.00018287,2]
[368938221,1751398239758,-460.0,0.00018287,2]
[368938222,1751398239768,-460.0,0.00018287,2]
[368938224,1751398239778,-308.47891596,0.00018287,2]
[368938225,1751398239787,-365.25001175,0.00018287,2]
[368938227,1751398239797,-460.0,0.00018287,2]
[368938229,1751398239807,-460.0,0.00018287,2]
[368938231,1751398239816,-460.0,0.00018287,2]
[368938232,1751398239826,-460.0,0.00018287,2]
[368938233,1751398239835,-585.51,0.00018287,2]
[368938234,1751398239845,-460.0,0.00018287,2]
[368938235,1751398239854,-460.0,0.00018287,2]
[368938236,1751398239864,-195.52314482,0.00018287,2]
[368938237,1751398239873,-460.0,0.00018287,2]
[368938238,1751398239883,-460.0,0.00018287,2]
[368938239,1751398239894,-460.0,0.00018287,2]
[368938240,1751398239903,-460.0,0.00018287,2]
[368938241,1751398239913,-460.0,0.00018287,2]
[368938242,1751398239928,-460.0,0.00018287,2]
[368938244,1751398239938,-460.0,0.00018287,2]
[368938246,1751398239947,-460.0,0.00018287,2]
[368938248,1751398239957,-460.0,0.00018287,2]
[368938250,1751398239966,-278.98,0.00018287,2]
[368938252,1751398239975,-430.0,0.00018287,2]
[368938254,1751398239984,-460.0,0.00018287,2]
[368938256,1751398239994,-432.31898986,0.00018287,2]
[368938258,1751398240004,-321.173484,0.00018287,2]
[368938261,1751398240018,-138.826516,0.00018287,2]
[368938263,1751398240027,-460.0,0.00018287,2]
[368938265,1751398240036,-460.0,0.00018287,2]
[368938267,1751398240045,-460.0,0.00018287,2]
[368938269,1751398240055,-460.0,0.00018287,2]
[368938271,1751398240064,-460.0,0.00018287,2]
[368938273,1751398240076,-460.0,0.00018287,2]
[368938275,1751398240085,-460.0,0.00018287,2]
[368938277,1751398240096,-218.62594825,0.00018287,2]
[368938279,1751398240107,-460.0,0.00018287,2]
[368938281,1751398240116,-460.0,0.00018287,2]
[368938283,1751398240125,-460.0,0.00018287,2]
[368938285,1751398240134,-442.9930351,0.00018287,2]
[368938287,1751398240147,-17.0069649,0.00018287,2]
[368938289,1751398240156,-460.0,0.00018287,2]
[368938291,1751398240166,-460.0,0.00018287,2]
[368938293,1751398240176,-546.46286951,0.00018287,2]
[368938295,1751398240186,-460.0,0.00018287,2]
[368938297,1751398240195,-590.17,0.00018287,2]
[368938299,1751398240205,-460.0,0.00018287,2]
[368938301,1751398240214,-460.0,0.00018287,2]
[368938303,1751398240223,-460.0,0.00018287,2]
[368938305,1751398240232,-460.0,0.00018287,2]
[368938307,1751398240242,-463.00665894,0.00018287,2]
[368938310,1751398240252,-460.0,0.00018287,2]
[368938312,1751398240262,-176.66188115,0.00018287,2]
[368938314,1751398240271,-547.6,0.00018453,2]
[368938316,1751398240281,-460.0,0.00018453,2]
[368938318,1751398240290,-460.0,0.00018453,2]
[368938320,1751398240299,-460.0,0.00018453,2]
[368938322,1751398240309,-525.62,0.00018453,2]
[368938324,1751398240318,-494.89,0.00018453,2]
[368938326,1751398240327,-632.31,0.00018453,2]
[368938328,1751398240337,-177.16,0.00018453,2]
[368938330,1751398240346,-460.0,0.00018454,2]
[368938332,1751398240355,-460.0,0.00018454,2]
[368938334,1751398240364,-460.0,0.00018454,2]
[368938336,1751398240373,-460.0,0.00018454,2]
[368938338,1751398240382,-460.0,0.00018454,2]
[368938340,1751398240392,-460.0,0.00018454,2]
[368938342,1751398240401,-460.0,0.00018454,2]
[368938344,1751398240410,-460.0,0.00018454,2]
[368938346,1751398240419,-460.0,0.00018454,2]
[368938348,1751398240428,-460.0,0.00018455,2]
[368938350,1751398240437,-460.0,0.00018455,2]
[368938352,1751398240446,-460.0,0.00018455,2]
[368938354,1751398240455,-460.0,0.00018455,2]
[368938356,1751398240464,-603.08,0.00018455,2]
[368938358,1751398240474,-534.77,0.00018455,2]
[368938360,1751398240483,-467.11,0.00018455,2]
[368938362,1751398240492,-460.0,0.00018455,2]
[368938364,1751398240501,-460.0,0.00018455,2]
[368938366,1751398240511,-460.0,0.00018455,2]
[368938368,1751398240520,-460.0,0.00018455,2]
[368938370,1751398240529,-465.47,0.00018455,2]
[368938372,1751398240538,-460.0,0.00018455,2]
[368938374,1751398240547,-460.0,0.00018561,2]
[368938376,1751398240557,-460.0,0.00018561,2]
[368938378,1751398240566,-460.0,0.00018561,2]
[368938380,1751398240575,-460.0,0.00018727,2]
[368938382,1751398240584,-460.0,0.00018727,2]
[368938384,1751398240593,-525.62,0.00018727,2]
[368938386,1751398240603,-494.89,0.00018727,2]
[368938388,1751398240612,-632.31,0.00018727,2]
[368938390,1751398240621,-460.0,0.00018728,2]
[368938392,1751398240630,-460.0,0.00018728,2]
[368938394,1751398240639,-460.0,0.00018728,2]
[368938396,1751398240649,-460.0,0.00018728,2]
[368938398,1751398240658,-186.6,0.00018728,2]
[368938400,1751398240668,-153.96,0.00018728,2]
[368938402,1751398240677,-224.32,0.00018728,2]
[368938404,1751398240686,-460.0,0.00018728,2]
[368938406,1751398240696,-460.0,0.00018728,2]
[368938408,1751398240705,-460.0,0.00018729,2]
[368938410,1751398240714,-460.0,0.00018729,2]
[368938412,1751398240723,-460.0,0.00018729,2]
[368938414,1751398240733,-460.0,0.00018729,2]
[368938416,1751398240742,-460.0,0.00018729,2]
[368938419,1751398240752,-460.0,0.00018729,2]
[368938421,1751398240762,-321.7,0.00018729,2]
[368938423,1751398240772,-460.0,0.00018729,2]
[368938425,1751398240781,-606.54,0.00018729,2]
[368938427,1751398240791,-963.0,0.0001895,2]
[368938429,1751398240800,-150.0,0.0001895,2]
[368938431,1751398240809,-371.36,0.00019001,2]
[368938433,1751398240818,-460.0,0.00019001,2]
[368938435,1751398240827,-525.62,0.00019001,2]
[368938437,1751398240837,-494.89,0.00019001,2]
[368938439,1751398240847,-632.31,0.00019001,2]
[368938441,1751398240857,-460.0,0.00019002,2]
[368938443,1751398240867,-460.0,0.00019002,2]
[368938445,1751398240876,-460.0,0.00019002,2]
[368938447,1751398240886,-460.0,0.00019002,2]
[368938449,1751398240895,-460.0,0.00019002,2]
[368938451,1751398240904,-257.42,0.00019002,2]
[368938453,1751398240913,-460.0,0.00019003,2]
[368938455,1751398240923,-460.0,0.00019003,2]
[368938457,1751398240931,-460.0,0.00019003,2]
[368938459,1751398240941,-460.0,0.00019003,2]
[368938461,1751398240950,-424.74,0.00019003,2]
[368938463,1751398240959,-241.11,0.00019003,2]
[368938465,1751398240969,-460.0,0.00019003,2]
[368938467,1751398240978,-837.20943635,0.00019214,2]
[368938480,1751398241083,-215.01728679,0.00019214,2]
[368938482,1751398241093,-160.0,0.00019214,2]
[368938484,1751398241106,-230.32585361,0.00019214,2]
[368938485,1751398241115,-160.0,0.00019214,2]
[368938486,1751398241125,-847.53272281,0.00019214,2]
[368938487,1751398241134,-460.0,0.00019275,2]
[368938488,1751398241144,-525.62,0.00019275,2]
[368938489,1751398241154,-494.89,0.00019275,2]
[368938490,1751398241164,-632.31,0.00019275,2]
[368938491,1751398241173,-460.0,0.00019276,2]
[368938492,1751398241182,-460.0,0.00019276,2]
[368938493,1751398241191,-460.0,0.00019276,2]
[368938494,1751398241200,-460.0,0.00019276,2]
[368938495,1751398241210,-460.0,0.00019276,2]
[368938496,1751398241218,-460.0,0.00019277,2]
[368938497,1751398241228,-460.0,0.00019277,2]
[368938498,1751398241237,-460.0,0.00019277,2]
[368938500,1751398241246,-336.86,0.00019277,2]
[368938501,1751398241255,-460.0,0.00019277,2]
[368938503,1751398241265,-460.0,0.00019549,2]
[368938505,1751398241275,-525.62,0.00019549,2]
[368938507,1751398241283,-494.89,0.00019549,2]
[368938509,1751398241293,-632.31,0.00019549,2]
[368938511,1751398241302,-460.0,0.0001955,2]
[368938513,1751398241312,-460.0,0.0001955,2]
[368938515,1751398241321,-340.44,0.0001955,2]
[368938517,1751398241330,-460.0,0.0001955,2]
[368938519,1751398241339,-529.44,0.0001955,2]
[368938521,1751398241348,-460.0,0.00019551,2]
[368938523,1751398241357,-460.0,0.00019551,2]
[368938525,1751398241367,-460.0,0.00019551,2]
[368938527,1751398241376,-460.0,0.00019551,2]
[368938529,1751398241384,-3696.31837008,0.000198,2]
[368938531,1751398241394,-460.0,0.00019823,2]
[368938534,1751398241403,-525.62,0.00019823,2]
[368938536,1751398241413,-494.89,0.00019823,2]
[368938538,1751398241423,-632.31,0.00019823,2]
[368938540,1751398241432,-460.0,0.00019824,2]
[368938542,1751398241441,-460.0,0.00019824,2]
[368938544,1751398241451,-460.0,0.00019824,2]
[368938546,1751398241460,-460.0,0.00019825,2]
[368938548,1751398241470,-460.0,0.00019825,2]
[368938550,1751398241479,-460.0,0.00019825,2]
[368938552,1751398241488,-448.40184597,0.00019825,2]
[368938554,1751398241497,-460.0,0.00020097,2]
[368938556,1751398241506,-525.62,0.00020097,2]
[368938558,1751398241515,-494.89,0.00020097,2]
[368938560,1751398241525,-632.31,0.00020097,2]
[368938562,1751398241533,-460.0,0.00020098,2]
[368938564,1751398241543,-460.0,0.00020098,2]
[368938566,1751398241552,-460.0,0.00020098,2]
[368938568,1751398241561,-460.0,0.00020099,2]
[368938570,1751398241570,-497.8,0.00020099,2]
[368938572,1751398241579,-460.0,0.00020099,2]
[368938574,1751398241588,-182.415372,0.00020187,2]
[368938576,1751398241597,-460.0,0.00020371,2]
[368938578,1751398241609,-525.62,0.00020371,2]
[368938580,1751398241619,-494.89,0.00020371,2]
[368938582,1751398241628,-632.31,0.00020371,2]
[368938584,1751398241637,-488.86,0.00020372,2]
[368938586,1751398241647,-460.0,0.00020372,2]
[368938588,1751398241656,-176.48,0.00020372,2]
[368938590,1751398241665,-460.0,0.00020373,2]
[368938592,1751398241675,-460.0,0.00020373,2]
[368938595,1751398241684,-482.1655817,0.00020598,2]
[368938597,1751398241693,-255.623,0.00020622,2]
[368938599,1751398241703,-460.0,0.00020645,2]
[368938601,1751398241712,-525.62,0.00020645,2]
[368938603,1751398241721,-494.89,0.00020645,2]
[368938605,1751398241730,-632.31,0.00020645,2]
[368938607,1751398241739,-460.0,0.00020646,2]
[368938609,1751398241748,-460.0,0.00020647,2]
[368938611,1751398241758,-460.0,0.00020647,2]
[368938613,1751398241767,-1473.49143182,0.00020822,2]
[368938615,1751398241776,-460.0,0.00020919,2]
[368938617,1751398241785,-525.62,0.00020919,2]
[368938619,1751398241795,-494.89,0.00020919,2]
[368938621,1751398241804,-632.31,0.00020919,2]
[368938623,1751398241813,-460.0,0.0002092,2]
[368938625,1751398241822,-460.0,0.00020921,2]
[368938627,1751398241832,-460.0,0.00020921,2]
[368938629,1751398241841,-1000.0,0.00020922,2]
[368938631,1751398241851,-1000.0,0.00020922,2]
[368938633,1751398241860,-1000.0,0.00020922,2]
[368938635,1751398241869,-1000.0,0.00020922,2]
[368938637,1751398241879,-1000.0,0.00020922,2]
[368938639,1751398241888,-500.0,0.00021,2]
[368938641,1751398241897,-1000.0,0.00021153,2]
[368938643,1751398241906,-460.0,0.00021193,2]
[368938645,1751398241916,-525.62,0.00021193,2]
[368938647,1751398241927,-494.89,0.00021193,2]
[368938649,1751398241936,-632.31,0.00021193,2]
[368938651,1751398241946,-460.0,0.00021194,2]
[368938653,1751398241955,-460.0,0.00021195,2]
[368938655,1751398241965,-460.0,0.00021195,2]
[368938657,1751398241974,-3284.85111064,0.00021353,2]
[368938666,1751398242055,-460.0,0.00018287,2]
[368938668,1751398242065,-1715.14888936,0.00021353,2]
[368938670,1751398242075,-207.4,0.00021353,2]
[368938672,1751398242084,-640.99035368,0.00021388,2]
[368938674,1751398242093,-460.0,0.00021467,2]
[368938676,1751398242105,-525.62,0.00021467,2]
[368938678,1751398242115,-494.89,0.00021467,2]
[368938680,1751398242124,-632.31,0.00021467,2]
[368938682,1751398242134,-397.89999999,0.00021468,2]
[368938684,1751398242144,-460.0,0.00021469,2]
[368938686,1751398242153,-460.0,0.00021469,2]
[368938688,1751398242163,-793.47,0.000215,2]
[368938690,1751398242173,-482.1655817,0.0002171,2]
[368938692,1751398242183,-460.0,0.00021741,2]
[368938694,1751398242192,-525.62,0.00021741,2]
[368938696,1751398242201,-494.89,0.00021741,2]
[368938698,1751398242211,-632.31,0.00021741,2]
[368938700,1751398242220,-460.0,0.00021743,2]
[368938702,1751398242229,-460.0,0.00021743,2]
[368938704,1751398242238,-1473.49143179,0.00021817,2]
[368938706,1751398242247,-3289.44668852,0.000219,2]
[368938709,1751398242258,-299.88738122,0.000219,2]
[368938711,1751398242269,-474.20693059,0.000219,2]
[368938716,1751398242306,-315.53910005,0.00017632,2]
[368938719,1751398242316,-460.0,0.00018287,2]
[368938723,1751398242325,-460.0,0.00018561,2]